fUSD/lending_fUSD_20240728
["ID","MTS","AMOUNT","RATE_DAILY","PERIOD"]
[333451192,1722137441323,-528.17292964,0.00010999,2]
[333451194,1722137441332,-500.0,0.00010999,2]
[333451196,1722137441341,-535.00034053,0.00010999,2]
[333451198,1722137441352,-622.98983062,0.00010999,2]
[333451200,1722137441361,-500.0,0.00010999,2]
[333451202,1722137441370,-1049.45031214,0.00010999,2]
[333451204,1722137441380,-522.84,0.00010999,2]
[333451206,1722137441391,-500.0,0.00010999,2]
[333451208,1722137441401,-412.65604189,0.00010999,2]
[333451210,1722137441411,-520.66810203,0.00010999,2]
[333451212,1722137441420,-600.19087928,0.00010999,2]
[333451214,1722137441430,-300.41633906,0.00010999,2]
[333451216,1722137441439,-500.0,0.00010999,2]
[333451218,1722137441448,-500.0,0.00010999,2]
[333451220,1722137441458,-500.0,0.00010999,2]
[333451223,1722137441468,-500.0,0.00010999,2]
[333451226,1722137441478,-160.15475012,0.00010999,2]
[333451229,1722137441487,-605.72448833,0.00010999,2]
[333451232,1722137441496,-500.0,0.00010999,2]
[333451235,1722137441506,-500.0,0.00010999,2]
[333451237,1722137441515,-500.0,0.00010999,2]
[333451239,1722137441525,-2563.1494347,0.00010999,2]
[333451241,1722137441535,-500.0,0.00010999,2]
[333451243,1722137441545,-500.0,0.00010999,2]
[333451245,1722137441554,-500.0,0.00010999,2]
[333451247,1722137441564,-230.76652527,0.00010999,2]
[333451249,1722137441573,-500.0,0.00010999,2]
[333451251,1722137441583,-2096.49996094,0.00010999,2]
[333451253,1722137441593,-500.0,0.00010999,2]
[333451255,1722137441603,-605.27,0.00010999,2]
[333451257,1722137441612,-500.0,0.00010999,2]
[333451259,1722137441622,-500.0,0.00010999,2]
[333451261,1722137441631,-500.0,0.00010999,2]
[333451263,1722137441641,-500.0,0.00010999,2]
[333451265,1722137441651,-500.0,0.00010999,2]
[333451267,1722137441661,-500.0,0.00010999,2]
[333451269,1722137441671,-500.0,0.00010999,2]
[333451271,1722137441680,-305.61,0.00010999,2]
[333451273,1722137441693,-500.0,0.00010999,2]
[333451275,1722137441702,-500.0,0.00010999,2]
[333451277,1722137441712,-500.0,0.00010999,2]
[333451279,1722137441722,-630.70154649,0.00010999,2]
[333451281,1722137441732,-500.0,0.00010999,2]
[333451283,1722137441742,-500.0,0.00010999,2]
[333451285,1722137441752,-500.0,0.00010999,2]
[333451287,1722137441762,-500.0,0.00010999,2]
[333451289,1722137441774,-500.0,0.00010999,2]
[333451291,1722137441784,-500.0,0.00010999,2]
[333451293,1722137441794,-500.0,0.00010999,2]
[333451295,1722137441803,-270.38358281,0.00010999,2]
[333451297,1722137441813,-500.0,0.00010999,2]
[333451299,1722137441823,-500.0,0.00010999,2]
[333451301,1722137441832,-500.0,0.00010999,2]
[333451303,1722137441842,-500.0,0.00010999,2]
[333451305,1722137441852,-500.0,0.00010999,2]
[333451307,1722137441862,-500.0,0.00010999,2]
[333451309,1722137441871,-385.06808525,0.00010999,2]
[333451311,1722137441881,-500.0,0.00010999,2]
[333451313,1722137441890,-500.0,0.00010999,2]
[333451315,1722137441900,-500.0,0.00010999,2]
[333451317,1722137441909,-500.0,0.00010999,2]
[333451319,1722137441919,-526.59121262,0.00010999,2]
[333451321,1722137441928,-500.0,0.00010999,2]
[333451323,1722137441939,-500.0,0.00010999,2]
[333451325,1722137441949,-500.0,0.00010999,2]
[333451327,1722137441958,-500.0,0.00010999,2]
[333451329,1722137441968,-500.0,0.00010999,2]
[333451331,1722137441977,-500.0,0.00010999,2]
[333451333,1722137441987,-500.0,0.00010999,2]
[333451335,1722137441996,-500.0,0.00010999,2]
[333451337,1722137442006,-500.0,0.00010999,2]
[333451339,1722137442015,-500.0,0.00010999,2]
[333451341,1722137442026,-500.0,0.00010999,2]
[333451343,1722137442036,-500.0,0.00010999,2]
[333451345,1722137442045,-500.0,0.00010999,2]
[333451347,1722137442055,-178.61883672,0.00010999,2]
[333451349,1722137442067,-500.0,0.00010999,2]
[333451351,1722137442077,-500.0,0.00010999,2]
[333451353,1722137442087,-500.0,0.00010999,2]
[333451355,1722137442096,-500.0,0.00010999,2]
[333451357,1722137442106,-500.0,0.00010999,2]
[333451359,1722137442115,-500.0,0.00010999,2]
[333451361,1722137442125,-500.0,0.00010999,2]
[333451363,1722137442133,-500.0,0.00010999,2]
[333451365,1722137442143,-500.0,0.00010999,2]
[333451367,1722137442153,-500.0,0.00010999,2]
[333451369,1722137442163,-500.0,0.00010999,2]
[333451371,1722137442173,-379.89316121,0.00010999,2]
[333451373,1722137442182,-500.0,0.00010999,2]
[333451375,1722137442192,-500.0,0.00010999,2]
[333451377,1722137442201,-500.0,0.00010999,2]
[333451379,1722137442210,-500.0,0.00010999,2]
[333451381,1722137442220,-500.0,0.00010999,2]
[333451383,1722137442229,-500.0,0.00010999,2]
[333451385,1722137442238,-309.50819845,0.00010999,2]
[333451387,1722137442248,-500.0,0.00010999,2]
[333451389,1722137442257,-500.0,0.00010999,2]
[333451391,1722137442267,-500.0,0.00010999,2]
[333451397,1722137442318,-500.0,0.00010999,2]
[333451399,1722137442327,-500.0,0.00010999,2]
[333451401,1722137442336,-561.80023555,0.00010999,2]
[333451402,1722137442346,-500.0,0.00010999,2]
[333451404,1722137442355,-500.0,0.00010999,2]
[333451406,1722137442364,-589.19900484,0.00010999,2]
[333451408,1722137442374,-500.0,0.00010999,2]
[333451410,1722137442383,-500.0,0.00010999,2]
[333451412,1722137442393,-500.0,0.00010999,2]
[333451414,1722137442402,-500.0,0.00010999,2]
[333451416,1722137442411,-306.45,0.00010999,2]
[333451418,1722137442421,-500.0,0.00010999,2]
[333451420,1722137442430,-500.0,0.00010999,2]
[333451422,1722137442439,-514.80522849,0.00010999,2]
[333451424,1722137442449,-10.62534642,0.00010999,2]
[333451491,1722137443075,-489.37465358,0.00010999,2]
[333451493,1722137443084,-550.49248637,0.00010999,2]
[333451495,1722137443093,-500.0,0.00010999,2]
[333451497,1722137443102,-340.88745349,0.00010999,2]
[333451498,1722137443111,-534.85258135,0.00010999,2]
[333451500,1722137443120,-513.26057123,0.00010999,2]
[333451502,1722137443129,-500.0,0.00010999,2]
[333451504,1722137443138,-388.71680107,0.00010999,2]
[333451506,1722137443147,-500.0,0.00010999,2]
[333451508,1722137443156,-285.49735776,0.00010999,2]
[333451511,1722137443178,-183.18272446,0.00010999,2]
[333451513,1722137443187,-500.0,0.00010999,2]
[333451515,1722137443196,-319.00925405,0.00010999,2]
[333451517,1722137443207,-180.99074595,0.00010999,2]
[333451519,1722137443216,-550.58819974,0.00010999,2]
[333451521,1722137443225,-507.81787106,0.00010999,2]
[333451523,1722137443235,-500.0,0.00010999,2]
[333451525,1722137443243,-500.0,0.00010999,2]
[333451527,1722137443253,-500.0,0.00010999,2]
[333451529,1722137443262,-500.0,0.00010999,2]
[333451531,1722137443271,-500.0,0.00010999,2]
[333451533,1722137443282,-500.0,0.00010999,2]
[333451535,1722137443291,-500.0,0.00010999,2]
[333451537,1722137443300,-500.0,0.00010999,2]
[333451539,1722137443310,-562.11476183,0.00010999,2]
[333451541,1722137443319,-500.0,0.00010999,2]
[333451543,1722137443328,-500.0,0.00010999,2]
[333451546,1722137443337,-500.0,0.00010999,2]
[333451548,1722137443346,-500.0,0.00010999,2]
[333451550,1722137443355,-500.0,0.00010999,2]
[333451552,1722137443364,-500.0,0.00010999,2]
[333451554,1722137443373,-500.0,0.00010999,2]
[333451556,1722137443383,-500.0,0.00010999,2]
[333451558,1722137443392,-393.15,0.00010999,2]
[333451560,1722137443401,-500.0,0.00010999,2]
[333451562,1722137443410,-248.55290508,0.00010999,2]
[333451564,1722137443419,-2000.0,0.00010999,2]
[333451566,1722137443427,-500.0,0.00010999,2]
[333451568,1722137443436,-498.19068912,0.00010999,2]
[333451571,1722137443446,-500.0,0.00010999,2]
[333451573,1722137443455,-500.0,0.00010999,2]
[333451575,1722137443464,-500.0,0.00010999,2]
[333451577,1722137443474,-293.49,0.00010999,2]
[333451580,1722137443483,-540.30041682,0.00010999,2]
[333451583,1722137443492,-200.0,0.00010999,2]
[333451585,1722137443501,-500.0,0.00010999,2]
[333451587,1722137443510,-500.0,0.00010999,2]
[333451589,1722137443519,-542.36111735,0.00010999,2]
[333451591,1722137443529,-500.0,0.00010999,2]
[333451593,1722137443538,-500.0,0.00010999,2]
[333451595,1722137443547,-500.0,0.00010999,2]
[333451596,1722137443557,-614.18,0.00010999,2]
[333451597,1722137443566,-500.0,0.00010999,2]
[333451598,1722137443576,-187.04,0.00010999,2]
[333451599,1722137443585,-500.0,0.00010999,2]
[333451600,1722137443594,-500.0,0.00010999,2]
[333451601,1722137443602,-432.74116241,0.00010999,2]
[333451602,1722137443611,-500.0,0.00010999,2]
[333451603,1722137443621,-500.0,0.00010999,2]
[333451604,1722137443630,-648.12265781,0.00010999,2]
[333451605,1722137443639,-500.0,0.00010999,2]
[333451606,1722137443648,-500.0,0.00010999,2]
[333451607,1722137443657,-500.0,0.00010999,2]
[333451608,1722137443667,-500.0,0.00010999,2]
[333451609,1722137443676,-198.88440397,0.00010999,2]
[333451610,1722137443685,-500.0,0.00010999,2]
[333451611,1722137443699,-500.0,0.00010999,2]
[333451612,1722137443708,-500.0,0.00010999,2]
[333451613,1722137443717,-500.0,0.00010999,2]
[333451614,1722137443726,-500.0,0.00010999,2]
[333451615,1722137443735,-500.0,0.00010999,2]
[333451616,1722137443744,-500.0,0.00010999,2]
[333451617,1722137443753,-500.0,0.00010999,2]
[333451618,1722137443762,-500.0,0.00010999,2]
[333451619,1722137443771,-500.0,0.00010999,2]
[333451620,1722137443781,-500.0,0.00010999,2]
[333451621,1722137443790,-500.0,0.00010999,2]
[333451622,1722137443799,-510.35427921,0.00010999,2]
[333451623,1722137443808,-500.0,0.00010999,2]
[333451624,1722137443817,-500.0,0.00010999,2]
[333451625,1722137443826,-500.0,0.00010999,2]
[333451626,1722137443835,-500.0,0.00010999,2]
[333451627,1722137443844,-500.0,0.00010999,2]
[333451628,1722137443854,-500.0,0.00010999,2]
[333451629,1722137443862,-269.05245904,0.00010999,2]
[333451630,1722137443917,-230.94754096,0.00010999,2]
[333451631,1722137443926,-500.0,0.00010999,2]
[333451632,1722137443935,-500.0,0.00010999,2]
[333451633,1722137443944,-500.0,0.00010999,2]
[333451634,1722137443953,-584.88654791,0.00010999,2]
[333451635,1722137443962,-500.0,0.00010999,2]
[333451636,1722137443971,-500.0,0.00010999,2]
[333451637,1722137443980,-461.22,0.00010999,2]
[333451638,1722137443989,-285.99355156,0.00010999,2]
[333451639,1722137443997,-500.0,0.00010999,2]
[333451640,1722137444007,-500.0,0.00010999,2]
[333451641,1722137444016,-500.0,0.00010999,2]
[333451642,1722137444025,-500.0,0.00010999,2]
[333451643,1722137444034,-500.0,0.00010999,2]
[333451644,1722137444043,-514.43879446,0.00010999,2]
[333451645,1722137444052,-533.98425919,0.00010999,2]
[333451646,1722137444061,-500.0,0.00010999,2]
[333451647,1722137444070,-500.0,0.00010999,2]
[333451648,1722137444080,-500.0,0.00010999,2]
[333451649,1722137444089,-614.12,0.00010999,2]
[333451650,1722137444098,-510.4,0.00010999,2]
[333451651,1722137444108,-500.0,0.00010999,2]
[333451652,1722137444117,-500.0,0.00010999,2]
[333451653,1722137444127,-275.9458843,0.00010999,2]
[333451654,1722137444136,-500.0,0.00010999,2]
[333451655,1722137444145,-500.0,0.00010999,2]
[333451656,1722137444154,-510.29267341,0.00010999,2]
[333451657,1722137444163,-516.45287455,0.00010999,2]
[333451658,1722137444172,-511.39787226,0.00010999,2]
[333451659,1722137444181,-500.0,0.00010999,2]
[333451660,1722137444191,-500.0,0.00010999,2]
[333451661,1722137444200,-406.16938482,0.00010999,2]
[333451662,1722137444209,-509.56350972,0.00010999,2]
[333451663,1722137444218,-498.6104728,0.00010999,2]
[333451664,1722137444227,-562.92203556,0.00010999,2]
[333451665,1722137444237,-500.0,0.00010999,2]
[333451666,1722137444246,-515.15082774,0.00010999,2]
[333451667,1722137444256,-508.45743956,0.00010999,2]
[333451668,1722137444268,-515.55672043,0.00010999,2]
[333451669,1722137444278,-500.0,0.00010999,2]
[333451670,1722137444287,-500.0,0.00010999,2]
[333451671,1722137444296,-611.48163969,0.00010999,2]
[333451672,1722137444306,-506.71095584,0.00010999,2]
[333451673,1722137444318,-500.0,0.00010999,2]
[333451674,1722137444331,-253.25598122,0.00010999,2]
[333451675,1722137444341,-512.85054976,0.00010999,2]
[333451676,1722137444352,-500.0,0.00010999,2]
[333451677,1722137444362,-175.41794062,0.00010999,2]
[333451678,1722137444373,-507.62155752,0.00010999,2]
[333451679,1722137444384,-510.54054041,0.00010999,2]
[333451680,1722137444394,-509.06616804,0.00010999,2]
[333451681,1722137444404,-517.25361478,0.00010999,2]
[333451682,1722137444413,-509.54525935,0.00010999,2]
[333451683,1722137444424,-516.10685834,0.00010999,2]
[333451684,1722137444434,-511.76670994,0.00010999,2]
[333451685,1722137444445,-613.73803131,0.00010999,2]
[333451686,1722137444455,-500.0,0.00010999,2]
[333451687,1722137444465,-532.35659785,0.00010999,2]
[333451688,1722137444475,-518.41288185,0.00010999,2]
[333451689,1722137444484,-500.0,0.00010999,2]
[333451690,1722137444494,-500.0,0.00010999,2]
[333451691,1722137444503,-500.0,0.00010999,2]
[333451692,1722137444513,-272.36,0.00010999,2]
[333451693,1722137444522,-518.81315056,0.00010999,2]
[333451694,1722137444534,-512.87002038,0.00010999,2]
[333451695,1722137444543,-511.52930446,0.00010999,2]
[333451696,1722137444553,-509.61697739,0.00010999,2]
[333451697,1722137444562,-506.23669889,0.00010999,2]
[333451698,1722137444572,-500.0,0.00010999,2]
[333451699,1722137444582,-513.72583309,0.00010999,2]
[333451700,1722137444591,-205.10494696,0.00010999,2]
[333451701,1722137444601,-509.41124623,0.00010999,2]
[333451702,1722137444611,-515.70292946,0.00010999,2]
[333451703,1722137444620,-500.0,0.00010999,2]
[333451704,1722137444630,-500.0,0.00010999,2]
[333451705,1722137444639,-506.63501585,0.00010999,2]
[333451706,1722137444649,-550.06036724,0.00010999,2]
[333451707,1722137444658,-500.0,0.00010999,2]
[333451708,1722137444667,-340.70987774,0.00010999,2]
[333451709,1722137444676,-513.28204287,0.00010999,2]
[333451710,1722137444686,-507.10822004,0.00010999,2]
[333451711,1722137444699,-506.95923488,0.00010999,2]
[333451712,1722137444709,-511.82840953,0.00010999,2]
[333451713,1722137444718,-500.0,0.00010999,2]
[333451714,1722137444727,-203.11636151,0.00010999,2]
[333451715,1722137444738,-511.57505004,0.00010999,2]
[333451716,1722137444747,-509.87061024,0.00010999,2]
[333451717,1722137444756,-500.0,0.00010999,2]
[333451718,1722137444768,-500.0,0.00010999,2]
[333451719,1722137444777,-548.64014968,0.00010999,2]
[333451720,1722137444787,-500.0,0.00010999,2]
[333451721,1722137444796,-500.0,0.00010999,2]
[333451722,1722137444806,-445.66197435,0.00010999,2]
[333451723,1722137444815,-516.01336242,0.00010999,2]
[333451724,1722137444825,-509.39361251,0.00010999,2]
[333451725,1722137444834,-540.57945413,0.00010999,2]
[333451726,1722137444844,-514.37732382,0.00010999,2]
[333451727,1722137444853,-2000.0,0.00010999,2]
[333451728,1722137444863,-164.97164191,0.00010999,2]
[333451729,1722137444872,-200.0,0.00010999,2]
[333451730,1722137444882,-562.91086048,0.00010999,2]
[333451731,1722137444892,-500.0,0.00010999,2]
[333451732,1722137444901,-521.39604612,0.00010999,2]
[333451733,1722137444911,-500.0,0.00010999,2]
[333451734,1722137444920,-560.12,0.00010999,2]
[333451735,1722137444930,-500.0,0.00010999,2]
[333451736,1722137444940,-189.2141384,0.00010999,2]
[333451737,1722137444949,-525.20272386,0.00010999,2]
[333451738,1722137444958,-500.0,0.00010999,2]
[333451739,1722137444968,-500.0,0.00010999,2]
[333451740,1722137444977,-230.84282681,0.00010999,2]
[333451741,1722137444987,-500.0,0.00010999,2]
[333451742,1722137444996,-500.0,0.00010999,2]
[333451743,1722137445005,-607.76,0.00010999,2]
[333451744,1722137445015,-500.0,0.00010999,2]
[333451745,1722137445024,-500.0,0.00010999,2]
[333451746,1722137445036,-607.38649697,0.00010999,2]
[333451747,1722137445045,-500.0,0.00010999,2]
[333451748,1722137445055,-500.0,0.00010999,2]
[333451749,1722137445068,-500.0,0.00010999,2]
[333451750,1722137445077,-5725.88823166,0.00010999,2]
[333451751,1722137445087,-500.0,0.00010999,2]
[333451752,1722137445096,-500.0,0.00010999,2]
[333451753,1722137445105,-233.46815566,0.00010999,2]
[333451754,1722137445115,-500.0,0.00010999,2]
[333451755,1722137445124,-500.0,0.00010999,2]
[333451756,1722137445134,-500.0,0.00010999,2]
[333451757,1722137445143,-500.0,0.00010999,2]
[333451758,1722137445152,-500.0,0.00010999,2]
[333451759,1722137445162,-309.66808909,0.00010999,2]
[333451760,1722137445172,-500.0,0.00010999,2]
[333451761,1722137445181,-529.90510246,0.00010999,2]
[333451762,1722137445190,-500.0,0.00010999,2]
[333451763,1722137445200,-500.0,0.00010999,2]
[333451764,1722137445210,-625.16217973,0.00010999,2]
[333451765,1722137445220,-500.0,0.00010999,2]
[333451766,1722137445229,-262.75247719,0.00010999,2]
[333451767,1722137445239,-500.0,0.00010999,2]
[333451768,1722137445248,-500.0,0.00010999,2]
[333451769,1722137445258,-319.45323506,0.00010999,2]
[333451770,1722137445268,-217.59375812,0.00010999,2]
[333451771,1722137445279,-443.53443281,0.00010999,2]
[333451772,1722137445289,-602.14625462,0.00010999,2]
[333451773,1722137445298,-500.0,0.00010999,2]
[333451774,1722137445308,-500.0,0.00010999,2]
[333451775,1722137445318,-324.13610467,0.00010999,2]
[333451776,1722137445327,-312.8638196,0.00010999,2]
[333451777,1722137445337,-500.0,0.00010999,2]
[333451778,1722137445346,-500.0,0.00010999,2]
[333451779,1722137445356,-500.0,0.00010999,2]
[333451780,1722137445366,-500.0,0.00010999,2]
[333451781,1722137445375,-500.0,0.00010999,2]
[333451782,1722137445384,-500.0,0.00010999,2]
[333451783,1722137445394,-151.272573,0.00010999,2]
[333451784,1722137445403,-151.0,0.00010999,2]
[333451785,1722137445413,-156.526355,0.00010999,2]
[333451786,1722137445422,-151.0,0.00010999,2]
[333451787,1722137445431,-152.775773,0.00010999,2]
[333451788,1722137445441,-151.481296,0.00010999,2]
[333451789,1722137445450,-2000.0,0.00010999,2]
[333451790,1722137445460,-200.0,0.00010999,2]
[333451791,1722137445470,-151.0,0.00010999,2]
[333451792,1722137445479,-151.0,0.00010999,2]
[333451793,1722137445489,-151.0,0.00010999,2]
[333451794,1722137445498,-3000.0,0.00010999,2]
[333451795,1722137445508,-203.814709,0.00010999,2]
[333451796,1722137445518,-203.814709,0.00010999,2]
[333451797,1722137445528,-278.553929,0.00010999,2]
[333451798,1722137445538,-152.542661,0.00010999,2]
[333451799,1722137445547,-151.0,0.00010999,2]
[333451800,1722137445556,-155.454165,0.00010999,2]
[333451801,1722137445566,-2000.0,0.00010999,2]
[333451802,1722137445575,-181.61391252,0.00010999,2]
[333451803,1722137445585,-200.0,0.00010999,2]
[333451804,1722137445595,-160.920957,0.00010999,2]
[333451805,1722137445604,-500.0,0.00010999,2]
[333451806,1722137445614,-500.0,0.00010999,2]
[333451807,1722137445623,-500.0,0.00010999,2]
[333451808,1722137445632,-500.0,0.00010999,2]
[333451809,1722137445642,-275.45178792,0.00010999,2]
[333451810,1722137445652,-500.0,0.00010999,2]
[333451811,1722137445661,-500.0,0.00010999,2]
[333451812,1722137445671,-500.0,0.00010999,2]
[333451813,1722137445680,-34602.61046219,0.00011,2]
[333451814,1722137445756,-863.3110572,0.00011,2]
[333451815,1722137445817,-276.639247,0.00011,2]
[333451816,1722137445834,-1267.5,0.00011,2]
[333451818,1722137445845,-1831.79098553,0.00011,2]
[333451894,1722137446646,-5233.77588146,0.00010999,2]
[333451948,1722137447161,-13041.20000012,0.00010999,2]
[333451951,1722137447173,-5511.2815,0.00010999,2]
[333452896,1722138631669,-378.25609224,8.219e-05,2]
[333452897,1722138631707,-325.95390776,8.219e-05,2]
[333452898,1722138631716,-103.92034414,8.22e-05,2]
[333452899,1722138631728,-47.09412166,8.22e-05,2]
[333452900,1722138631737,-158.63289557,8.22e-05,2]
[333452901,1722138631746,-200.01916,8.22e-05,2]
[333452902,1722138631755,-160.015328,8.22e-05,2]
[333452903,1722138631764,-200.01916,8.22e-05,2]
[333452904,1722138631773,-23.86933477,9.711e-05,2]
[333452905,1722138631787,-226.13066523,9.711e-05,2]
[333452906,1722138631798,-844.44187768,9.711e-05,2]
[333452907,1722138632008,-1300.99,9.711e-05,2]
[333452908,1722138632019,-441.08533386,9.711e-05,2]
[333452909,1722138632031,-877.97320371,9.711e-05,2]
[333452910,1722138632042,-469.48305765,9.711e-05,2]
[333452911,1722138632054,-395.37300914,9.711e-05,2]
[333452912,1722138632065,-6566.03609594,9.711e-05,2]
[333452913,1722138632076,-5888.14399479,9.711e-05,2]
[333452914,1722138632087,-7116.47342723,9.711e-05,2]
[333452915,1722138632097,-150.0,9.726e-05,2]
[333452916,1722138632107,-181.61,9.747e-05,2]
[333452917,1722138632116,-200.0,9.752e-05,2]
[333452918,1722138632126,-688.0,9.811e-05,2]
[333452919,1722138632136,-312.0,9.862e-05,2]
[333452920,1722138632145,-150.0,9.888e-05,2]
[333452921,1722138632154,-499.99,9.888e-05,2]
[333452922,1722138632167,-118.99425853,9.9e-05,3]
[333452923,1722138632179,-81.00574147,9.9e-05,3]
[333452924,1722138632189,-1985.01,9.9e-05,2]
[333452925,1722138632198,-591.1223,9.935e-05,2]
[333452926,1722138632209,-500.0,0.0001,3]
[333452927,1722138632219,-150.0,0.00010099,2]
[333452928,1722138632228,-800.0,0.000101,3]
[333452929,1722138632238,-1100.0,0.000102,3]
[333452930,1722138632251,-1400.0,0.000103,3]
[333452931,1722138632260,-200.0,0.000104,3]
[333452932,1722138632272,-704.21,0.00010466,2]
[333452933,1722138632281,-200.0,0.000105,3]
[333452934,1722138632291,-200.0,0.000106,3]
[333452935,1722138632301,-200.0,0.000107,3]
[333452936,1722138632311,-1000.0,0.000107,2]
[333452937,1722138632321,-1123.0,0.000108,3]
[333452938,1722138632330,-1000.0,0.000108,2]
[333452939,1722138632342,-227.61,0.00010904,2]
[333452940,1722138632351,-500.0,0.00010912,2]
[333452941,1722138632361,-200.0,0.00010959,2]
[333452942,1722138632370,-250.0,0.00010959,2]
[333452943,1722138632380,-7130.66431835,0.00010989,2]
[333452944,1722138632389,-5216.0813504,0.00010994,2]
[333452945,1722138632399,-2105.618165,0.00010994,2]
[333452946,1722138632408,-22387.9835745,0.00010994,2]
[333452947,1722138632418,-19214.141685,0.00010994,2]
[333452948,1722138632428,-2563.1494347,0.00010999,2]
[333452949,1722138632437,-1444.87317933,0.00010999,3]
[333452950,1722138632447,-155.19800792,0.00010999,2]
[333452951,1722138632457,-181.61391252,0.00010999,2]
[333452952,1722138632467,-1049.45031214,0.00010999,2]
[333452953,1722138632476,-160.15475012,0.00010999,2]
[333452954,1722138632487,-300.41633906,0.00010999,2]
[333452955,1722138632498,-449.02476873,0.00010999,2]
[333452956,1722138632508,-412.65604189,0.00010999,2]
[333452957,1722138632517,-5038.79,0.00010999,2]
[333452958,1722138632527,-500.0,0.00010999,2]
[333452959,1722138632537,-500.0,0.00010999,2]
[333452960,1722138632546,-500.0,0.00010999,2]
[333452961,1722138632555,-500.0,0.00010999,2]
[333452962,1722138632564,-500.0,0.00010999,2]
[333452963,1722138632574,-500.0,0.00010999,2]
[333452964,1722138632583,-500.0,0.00010999,2]
[333452965,1722138632593,-500.0,0.00010999,2]
[333452966,1722138632602,-500.0,0.00010999,2]
[333452967,1722138632612,-268.5655707,0.00010999,2]
[333452968,1722138632624,-76.20385552,0.00010999,2]
[333452969,1722138632633,-500.0,0.00010999,2]
[333452970,1722138632643,-500.0,0.00010999,2]
[333452971,1722138632652,-500.0,0.00010999,2]
[333452972,1722138632662,-152.19233313,0.00010999,2]
[333452973,1722138637668,-1200.04944682,0.00010999,2]
[333452974,1722138637726,-1466.694531,0.00010999,2]
[333452975,1722138637783,-3000.0,0.00010999,2]
[333452976,1722138637839,-1212.87718,0.00010999,2]
[333452984,1722138639940,-312.24598045,0.00010999,2]
[333452985,1722138639951,-539.88999989,0.00010999,2]
[333453227,1722138642572,-336.718,0.00010999,2]
[333453249,1722138642786,-742.5,0.00010999,2]
[333453330,1722138645623,-2522.7804,0.00010999,2]
[333453331,1722138645635,-643.97892178,0.00010999,2]
[333453332,1722138645806,-1394.51005659,0.00010999,2]
[333453333,1722138645818,-517.49928082,0.00010999,2]
[333453334,1722138645829,-33500.0,0.00010999,2]
[333453335,1722138645840,-910.07126,0.00010999,2]
[333453336,1722138645852,-1700.18494265,0.00010999,2]
[333453337,1722138645861,-347.80766687,0.00010999,2]
[333453338,1722138645870,-500.0,0.00010999,2]
[333453339,1722138645880,-32.29448784,0.00010999,2]
[333453348,1722138646132,-315.86816959,0.00010999,2]
[333453420,1722139831775,-701.18,8.219e-05,2]
[333453421,1722139831785,-160.84532582,8.22e-05,2]
[333453422,1722139831794,-150.71639531,9.888e-05,2]
[333453423,1722139831804,-250.0,9.923e-05,2]
[333453424,1722139831813,-249.6,9.928e-05,2]
[333453425,1722139831822,-3172.08482859,9.933e-05,2]
[333453426,1722139831834,-505.43097376,9.933e-05,2]
[333453427,1722139831845,-446.17024212,9.933e-05,2]
[333453428,1722139831856,-538.88,9.933e-05,2]
[333453429,1722139831868,-670.90395553,9.933e-05,2]
[333453430,1722139831877,-369.8,9.957e-05,2]
[333453431,1722139831886,-16.59604447,0.0001005,2]
[333453432,1722139831898,-619.48075157,0.0001005,2]
[333453433,1722139831937,-114.32320396,0.0001005,2]
[333453434,1722139831947,-233.07779596,0.00010472,2]